fUSD/lending_fUSD_20260531
["ID","MTS","AMOUNT","RATE_DAILY","PERIOD"]
[423530984,1780195841000,-226.726493,0.0002676,2]
[423530963,1780195841000,-1546.0,0.00026675,3]
[423530958,1780195841000,-1546.0,0.00026675,3]
[423530983,1780195841000,-226.726493,0.0002676,2]
[423530986,1780195841000,-226.726493,0.0002676,2]
[423530976,1780195841000,-151.0,0.0002676,2]
[423530981,1780195841000,-151.0,0.0002676,2]
[423530987,1780195841000,-4613.65414647,0.0002676,2]
[423530985,1780195841000,-226.726493,0.0002676,2]
[423530979,1780195841000,-151.0,0.0002676,2]
[423530982,1780195841000,-12988.7125992,0.0002676,2]
[423530977,1780195841000,-174.445092,0.0002676,2]
[423530978,1780195841000,-151.0,0.0002676,2]
[423530975,1780195841000,-1066.24170865,0.0002676,2]
[423530980,1780195841000,-151.0,0.0002676,2]
[423530970,1780195841000,-16111.641753,0.0002676,2]
[423530968,1780195841000,-877.55975484,0.00026741,2]
[423530969,1780195841000,-573.0,0.00026746,3]
[423530971,1780195841000,-309908.3111434,0.0002676,2]
[423530965,1780195841000,-1619.94599797,0.00026675,3]
[423530964,1780195841000,-1546.0,0.00026675,3]
[423530967,1780195841000,-322.0,0.000267,7]
[423530962,1780195841000,-1546.0,0.00026675,3]
[423530966,1780195841000,-151.0,0.00026675,3]
[423530974,1780195841000,-3554.0978903,0.0002676,2]
[423530973,1780195841000,-40835.3487558,0.0002676,2]
[423530972,1780195841000,-1200194.670286,0.0002676,2]
[423530995,1780195843000,158.0,0.00028,120]
[423531003,1780195846000,-761.2432223,0.00024641,2]
[423531002,1780195846000,-587.7307777,0.00024641,2]
[423531001,1780195846000,-698.15,0.00024254,2]
[423531004,1780195846000,-698.14,0.00025467,2]
[423531005,1780195846000,-191.05506048,0.0002666,2]
[423531007,1780195846000,-6916.65102283,0.0002676,2]
[423531006,1780195846000,-486.71671722,0.0002676,2]
[423531008,1780195846000,-1091.55639,0.0002676,2]
[423531021,1780195930000,259.05261,0.0002736,120]
[423531027,1780195944000,342.755324,0.00027088,120]
[423531028,1780195985000,171.377662,0.00027001,120]
[423531039,1780196147000,2000.0,0.00027401,120]
[423531044,1780196240000,513.12770269,0.0002,120]
[423531045,1780196316000,200.0,9.9e-05,3]
[423531046,1780196317000,400.0,0.0001,3]
[423531053,1780196608000,160.0,0.00028082,120]
[423531066,1780196815000,500.0,0.00027551,120]
[423531065,1780196815000,500.0,0.00027399,120]
[423531067,1780196829000,200.0,9.9e-05,3]
[423531068,1780196831000,400.0,0.0001,3]
[423531069,1780196940000,1000.0,0.00028081,120]
[423531076,1780197032000,-207.34622139,0.00010173,2]
[423531077,1780197032000,-232.65377861,0.00010191,2]
[423531078,1780197032000,-7040.70551549,0.00010191,2]
[423531079,1780197032000,-1200.0,0.00010199,2]
[423531087,1780197032000,-417.92729022,0.00010199,2]
[423531080,1780197032000,-406.86955712,0.00010199,2]
[423531083,1780197032000,-175.55221602,0.00010199,2]
[423531082,1780197032000,-500.0,0.00010199,2]
[423531081,1780197032000,-187.96430252,0.00010199,2]
[423531088,1780197032000,-406.52840648,0.000102,2]
[423531086,1780197032000,-16920.66371555,0.000102,2]
[423531085,1780197032000,-277.90869881,0.00010199,2]
[423531084,1780197032000,-222.09130119,0.00010199,2]
[423531089,1780197032000,-1226.08351096,0.000102,2]
[423531105,1780197032000,-29248.45217541,0.000102,2]
[423531091,1780197032000,-603.84235597,0.000102,2]
[423531090,1780197032000,-716.88532856,0.000102,2]
[423531106,1780197032000,-37113.30564556,0.000102,2]
[423531107,1780197032000,-12459.82282015,0.000102,2]
[423531101,1780197032000,-694749.42521402,0.000102,2]
[423531099,1780197032000,-203.02639023,0.00010199,2]
[423531098,1780197032000,-58315.39460262,0.000102,2]
[423531103,1780197032000,-3262.07277804,0.000102,2]
[423531097,1780197032000,-21.49192098,0.00010199,2]
[423531095,1780197032000,-6226.43661,0.000102,2]
[423531096,1780197032000,-478.50807902,0.00010199,2]
[423531093,1780197032000,-5557.05329214,0.000102,2]
[423531094,1780197032000,-1711.59719033,0.000102,2]
[423531092,1780197032000,-500.0,0.00010199,2]
[423531100,1780197032000,-148.50360727,0.000102,2]
[423531139,1780197038000,-2573.2052,0.000102,2]
[423531147,1780197038000,-166.619089,0.00010348,2]
[423531145,1780197038000,-243.76418843,0.00010299,2]
[423531144,1780197038000,-1000.0,0.00010299,2]
[423531148,1780197038000,-166.61908899,0.00010348,2]
[423531143,1780197038000,-11943.64280288,0.0001029,2]
[423531140,1780197038000,-1000.0,0.00010212,2]
[423531141,1780197038000,-167.32,0.00010273,2]
[423531138,1780197038000,-508448.01197962,0.000102,2]
[423531129,1780197038000,-500.0,0.00010199,2]
[423531136,1780197038000,-20955.83799274,0.000102,2]
[423531137,1780197038000,-4716.83026371,0.000102,2]
[423531135,1780197038000,-1513.16049576,0.000102,2]
[423531134,1780197038000,-5319.946548,0.000102,2]
[423531133,1780197038000,-1576.94745,0.000102,2]
[423531131,1780197038000,-203.44013361,0.00010199,2]
[423531132,1780197038000,-3392.78791711,0.000102,2]
[423531130,1780197038000,-296.55986639,0.00010199,2]
[423531146,1780197038000,-2500.0,0.000103,2]
[423531142,1780197038000,-422.0,0.00010289,2]
[423531152,1780197038000,-215.61611719,0.00010771,2]
[423531167,1780197038000,-2074.01861087,0.00012325,2]
[423531149,1780197038000,-194.27979737,0.0001039,2]
[423531151,1780197038000,-151.0792231,0.00010399,2]
[423531178,1780197038000,-150.0,0.00013125,2]
[423531175,1780197038000,-500.0,0.00012877,2]
[423531160,1780197038000,-4062.72589649,0.00011392,2]
[423531159,1780197038000,-1151.0,0.00011219,2]
[423531164,1780197038000,-1907.0,0.00011631,2]
[423531163,1780197038000,-496.0,0.00011608,2]
[423531161,1780197038000,-182.0,0.00011417,2]
[423531162,1780197038000,-315.0,0.00011585,2]
[423531173,1780197038000,-10061.13877921,0.00012698,2]
[423531166,1780197038000,-600.0,0.000119,4]
[423531170,1780197038000,-446.11,0.00012329,2]
[423531156,1780197038000,-636.0,0.00011173,2]
[423531171,1780197038000,-500.0,0.00012603,2]
[423531157,1780197038000,-264.0,0.00011214,2]
[423531155,1780197038000,-10061.13877927,0.00011099,2]
[423531150,1780197038000,-150.0,0.00010398,2]
[423531158,1780197038000,-437.0,0.00011219,2]
[423531153,1780197038000,-209.17060647,0.00010771,2]
[423531154,1780197038000,-2074.01861096,0.00011099,2]
[423531249,1780197039000,-500.0,0.00013698,2]
[423531250,1780197039000,-500.0,0.00013698,2]
[423531245,1780197039000,-500.0,0.00013698,2]
[423531248,1780197039000,-500.0,0.00013698,2]
[423531251,1780197039000,-500.0,0.00013698,2]
[423531244,1780197039000,-176.47630635,0.00013698,2]
[423531242,1780197039000,-500.0,0.00013698,2]
[423531240,1780197039000,-500.0,0.00013698,2]
[423531237,1780197039000,-500.0,0.00013698,2]
[423531232,1780197039000,-500.0,0.00013698,2]
[423531247,1780197039000,-500.0,0.00013698,2]
[423531243,1780197039000,-500.0,0.00013698,2]
[423531246,1780197039000,-500.0,0.00013698,2]
[423531257,1780197039000,-280.46951136,0.00013698,2]
[423531179,1780197039000,-500.0,0.00013151,2]
[423531241,1780197039000,-500.0,0.00013698,2]
[423531254,1780197039000,-500.0,0.00013698,2]
[423531253,1780197039000,-500.0,0.00013698,2]
[423531266,1780197039000,-500.0,0.00013698,2]
[423531264,1780197039000,-500.0,0.00013698,2]
[423531265,1780197039000,-500.0,0.00013698,2]
[423531255,1780197039000,-283.01167099,0.00013698,2]
[423531260,1780197039000,-500.0,0.00013698,2]
[423531256,1780197039000,-500.0,0.00013698,2]
[423531262,1780197039000,-500.0,0.00013698,2]
[423531263,1780197039000,-500.0,0.00013698,2]
[423531259,1780197039000,-504.85227868,0.00013698,2]
[423531258,1780197039000,-504.95307881,0.00013698,2]
[423531252,1780197039000,-500.0,0.00013698,2]
[423531230,1780197039000,-500.0,0.00013698,2]
[423531226,1780197039000,-597.63315966,0.00013698,2]
[423531231,1780197039000,-500.0,0.00013698,2]
[423531261,1780197039000,-502.19295882,0.00013698,2]
[423531181,1780197039000,-694.9,0.00013191,2]
[423531189,1780197039000,-500.0,0.00013698,2]
[423531187,1780197039000,-502.71306346,0.00013698,2]
[423531185,1780197039000,-586.71,0.00013627,2]
[423531183,1780197039000,-500.0,0.00013425,2]
[423531194,1780197039000,-500.0,0.00013698,2]
[423531191,1780197039000,-500.0,0.00013698,2]
[423531200,1780197039000,-500.0,0.00013698,2]
[423531197,1780197039000,-500.0,0.00013698,2]
[423531203,1780197039000,-500.0,0.00013698,2]
[423531205,1780197039000,-619.27919019,0.00013698,2]
[423531208,1780197039000,-500.0,0.00013698,2]
[423531210,1780197039000,-500.0,0.00013698,2]
[423531235,1780197039000,-500.0,0.00013698,2]
[423531218,1780197039000,-500.0,0.00013698,2]
[423531222,1780197039000,-500.0,0.00013698,2]
[423531216,1780197039000,-218.26918136,0.00013698,2]
[423531224,1780197039000,-500.0,0.00013698,2]
[423531220,1780197039000,-500.0,0.00013698,2]
[423531214,1780197039000,-500.0,0.00013698,2]
[423531223,1780197039000,-500.0,0.00013698,2]
[423531225,1780197039000,-500.0,0.00013698,2]
[423531228,1780197039000,-500.0,0.00013698,2]
[423531238,1780197039000,-500.0,0.00013698,2]
[423531227,1780197039000,-500.0,0.00013698,2]
[423531229,1780197039000,-500.0,0.00013698,2]
[423531239,1780197039000,-500.0,0.00013698,2]
[423531236,1780197039000,-500.0,0.00013698,2]
[423531233,1780197039000,-500.0,0.00013698,2]
[423531212,1780197039000,-500.0,0.00013698,2]
[423531267,1780197039000,-500.0,0.00013698,2]
[423531234,1780197039000,-500.0,0.00013698,2]
[423531270,1780197039000,-151.0,0.00013699,2]
[423531301,1780197039000,-500.0,0.00014993,2]
[423531306,1780197039000,-586.71,0.00015331,2]
[423531309,1780197039000,-200.0,0.00016174,2]
[423531308,1780197039000,-1598.97,0.00015616,2]
[423531307,1780197039000,-167.7,0.000155,2]
[423531313,1780197039000,-351.71644754,0.000169,2]
[423531310,1780197039000,-1045.5,0.00016438,2]
[423531314,1780197039000,-10061.13877921,0.00017031,2]
[423531315,1780197039000,-586.71,0.00017034,2]
[423531317,1780197039000,-1045.5,0.0001841,2]
[423531311,1780197039000,-167.7,0.00016681,2]
[423531316,1780197039000,-238.90847261,0.00018,2]
[423531312,1780197039000,-446.11,0.00016767,2]
[423531318,1780197039000,-168.21,0.00018508,2]
[423531320,1780197039000,-10061.13877921,0.00019198,2]
[423531321,1780197039000,-151.0,0.00019596,2]
[423531331,1780197039000,-151.0,0.00019596,2]
[423531322,1780197039000,-151.0,0.00019596,2]
[423531319,1780197039000,-586.71,0.00018738,2]
[423531330,1780197039000,-2080.17592889,0.00019596,2]
[423531323,1780197039000,-151.0,0.00019596,2]
[423531327,1780197039000,-151.0,0.00019596,2]
[423531324,1780197039000,-151.0,0.00019596,2]
[423531326,1780197039000,-151.0,0.00019596,2]
[423531325,1780197039000,-151.0,0.00019596,2]
[423531329,1780197039000,-151.0,0.00019596,2]
[423531328,1780197039000,-151.0,0.00019596,2]
[423531332,1780197039000,-151.0,0.00019596,2]
[423531271,1780197039000,-151.0,0.00013699,2]
[423531302,1780197039000,-500.0,0.00014993,2]
[423531303,1780197039000,-28772.52977894,0.00014993,2]
[423531284,1780197039000,-500.0,0.00013973,2]
[423531300,1780197039000,-500.0,0.00014993,2]
[423531298,1780197039000,-1598.97,0.00014907,2]
[423531269,1780197039000,-151.0,0.00013699,2]
[423531273,1780197039000,-151.0,0.00013699,2]
[423531274,1780197039000,-151.0,0.00013699,2]
[423531272,1780197039000,-151.0,0.00013699,2]
[423531268,1780197039000,-151.0,0.00013699,2]
[423531275,1780197039000,-151.0,0.00013699,2]
[423531277,1780197039000,-151.0,0.00013699,2]
[423531278,1780197039000,-162.917968,0.00013699,2]
[423531276,1780197039000,-151.0,0.00013699,2]
[423531280,1780197039000,-500.0,0.00013699,2]
[423531285,1780197039000,-9042.91326717,0.0001399,2]
[423531286,1780197039000,-166.66,0.0001411,2]
[423531282,1780197039000,-500.0,0.00013868,2]
[423531291,1780197039000,-166.66,0.00014384,2]
[423531279,1780197039000,-166.66,0.00013699,2]
[423531283,1780197039000,-166.66,0.00013973,2]
[423531299,1780197039000,-512.65332938,0.00014993,2]
[423531281,1780197039000,-166.66,0.00013836,2]
[423531297,1780197039000,-10061.13877921,0.00014865,2]
[423531304,1780197039000,-500.0,0.00015068,2]
[423531294,1780197039000,-2074.01861087,0.00014538,2]
[423531295,1780197039000,-1598.97,0.00014552,2]
[423531296,1780197039000,-500.0,0.00014795,2]
[423531305,1780197039000,-1598.97,0.00015262,2]
[423531288,1780197039000,-166.66,0.00014247,2]
[423531289,1780197039000,-500.0,0.00014247,2]
[423531290,1780197039000,-167.7,0.00014318,2]
[423531287,1780197039000,-1598.97,0.00014197,2]
[423531292,1780197039000,-150.0,0.00014462,2]
[423531293,1780197039000,-500.0,0.00014521,2]
[423531383,1780197040000,-446.11,0.00021205,2]
[423531374,1780197040000,-497.0,0.00021,2]
[423531375,1780197040000,-437.0,0.00021,2]
[423531372,1780197040000,-286.0,0.00021,2]
[423531364,1780197040000,-158.31,0.00020421,2]
[423531371,1780197040000,-190.0,0.00021,2]
[423531366,1780197040000,-633.58085636,0.00020524,2]
[423531365,1780197040000,-586.71,0.00020441,2]
[423531362,1780197040000,-1000.0,0.00020214,2]
[423531382,1780197040000,-265.0,0.00021,2]
[423531363,1780197040000,-1045.5,0.00020381,2]
[423531373,1780197040000,-154.0,0.00021,2]
[423531379,1780197040000,-189.0,0.00021,2]
[423531395,1780197040000,-5000.0,0.00021918,2]
[423531377,1780197040000,-156.0,0.00021,2]
[423531381,1780197040000,-669.0,0.00021,2]
[423531378,1780197040000,-424.0,0.00021,2]
[423531385,1780197040000,-9603.6,0.00021273,2]
[423531386,1780197040000,-1384.67,0.00021273,2]
[423531387,1780197040000,-597.85,0.00021273,2]
[423531396,1780197040000,-176.75,0.00021918,2]
[423531384,1780197040000,-2319.72410669,0.0002124,2]
[423531389,1780197040000,-158.31,0.0002128,2]
[423531393,1780197040000,-158.31,0.0002171,2]
[423531388,1780197040000,-1264.08,0.00021273,2]
[423531361,1780197040000,-150.99,0.00020145,2]
[423531380,1780197040000,-161.0,0.00021,2]
[423531367,1780197040000,-2236.95670847,0.00020692,2]
[423531349,1780197040000,-437.0,0.0002,2]
[423531357,1780197040000,-138351.1,0.0002,2]
[423531333,1780197040000,-151.0,0.00019596,2]
[423531334,1780197040000,-151.0,0.00019596,2]
[423531343,1780197040000,-2000.0,0.00019928,2]
[423531335,1780197040000,-151.0,0.00019596,2]
[423531342,1780197040000,-259.05261,0.000196,2]
[423531336,1780197040000,-151.0,0.00019596,2]
[423531337,1780197040000,-151.0,0.00019596,2]
[423531338,1780197040000,-151.0,0.00019596,2]
[423531341,1780197040000,-151.0,0.00019596,2]
[423531339,1780197040000,-151.0,0.00019596,2]
[423531340,1780197040000,-151.0,0.00019596,2]
[423531345,1780197040000,-190.0,0.0002,2]
[423531355,1780197040000,-669.0,0.0002,2]
[423531360,1780197040000,-206.11,0.00020145,7]
[423531356,1780197040000,-265.0,0.0002,2]
[423531392,1780197040000,-500.0,0.00021644,2]
[423531350,1780197040000,-197.0,0.0002,2]
[423531348,1780197040000,-497.0,0.0002,2]
[423531346,1780197040000,-286.0,0.0002,2]
[423531352,1780197040000,-424.0,0.0002,2]
[423531347,1780197040000,-154.0,0.0002,2]
[423531354,1780197040000,-161.0,0.0002,2]
[423531351,1780197040000,-156.0,0.0002,2]
[423531353,1780197040000,-189.0,0.0002,2]
[423531358,1780197040000,-2157.14243826,0.00020144,2]
[423531369,1780197040000,-158.31,0.0002085,2]
[423531368,1780197040000,-191.34,0.000208,2]
[423531370,1780197040000,-9999.99,0.00020951,2]
[423531344,1780197040000,-722.0,0.0002,2]
[423531390,1780197040000,-10061.13877921,0.00021364,2]
[423531376,1780197040000,-197.0,0.00021,2]
[423531394,1780197040000,-2405.55389863,0.00021788,2]
[423531426,1780197040000,-1546.0,0.0002246,2]
[423531428,1780197040000,-1546.0,0.0002246,2]
[423531430,1780197040000,-1546.0,0.0002246,2]
[423531445,1780197040000,-500.0,0.00022845,2]
[423531434,1780197040000,-151.0,0.0002246,2]
[423531433,1780197040000,-151.0,0.0002246,2]
[423531438,1780197040000,-153.0,0.0002246,2]
[423531437,1780197040000,-151.0,0.0002246,2]
[423531435,1780197040000,-151.0,0.0002246,2]
[423531443,1780197040000,-158.31,0.0002257,2]
[423531441,1780197040000,-154.0,0.0002246,2]
[423531444,1780197040000,-221.81,0.000226,14]
[423531436,1780197040000,-151.0,0.0002246,2]
[423531442,1780197040000,-285.1,0.00022466,2]
[423531440,1780197040000,-153.0,0.0002246,2]
[423531439,1780197040000,-153.0,0.0002246,2]
[423531446,1780197040000,-2586.85809042,0.00022884,2]
[423531448,1780197040000,-286.0,0.00023,2]
[423531447,1780197040000,-190.0,0.00023,2]
[423531452,1780197040000,-197.0,0.00023,2]
[423531451,1780197040000,-437.0,0.00023,2]
[423531454,1780197040000,-424.0,0.00023,2]
[423531455,1780197040000,-189.0,0.00023,2]
[423531453,1780197040000,-156.0,0.00023,2]
[423531449,1780197040000,-154.94064324,0.00023,2]
[423531456,1780197040000,-161.0,0.00023,2]
[423531391,1780197040000,-500.0,0.00021534,2]
[423531427,1780197040000,-1546.0,0.0002246,2]
[423531425,1780197040000,-1546.0,0.0002246,2]
[423531450,1780197040000,-497.0,0.00023,2]
[423531429,1780197040000,-1546.0,0.0002246,2]
[423531424,1780197040000,-1546.0,0.0002246,2]
[423531397,1780197040000,-500.0,0.00021999,2]
[423531403,1780197040000,-497.0,0.00022,2]
[423531408,1780197040000,-189.0,0.00022,2]
[423531398,1780197040000,-500.0,0.00021999,2]
[423531401,1780197040000,-286.0,0.00022,2]
[423531405,1780197040000,-197.0,0.00022,2]
[423531399,1780197040000,-500.0,0.00021999,2]
[423531402,1780197040000,-154.0,0.00022,2]
[423531406,1780197040000,-156.0,0.00022,2]
[423531407,1780197040000,-424.0,0.00022,2]
[423531404,1780197040000,-437.0,0.00022,2]
[423531420,1780197040000,-1546.0,0.0002246,2]
[423531410,1780197040000,-669.0,0.00022,2]
[423531400,1780197040000,-190.0,0.00022,2]
[423531411,1780197040000,-265.0,0.00022,2]
[423531409,1780197040000,-161.0,0.00022,2]
[423531423,1780197040000,-1546.0,0.0002246,2]
[423531431,1780197040000,-163.0,0.0002246,2]
[423531432,1780197040000,-163.0,0.0002246,2]
[423531422,1780197040000,-1546.0,0.0002246,2]
[423531417,1780197040000,-1045.5,0.00022353,2]
[423531421,1780197040000,-1546.0,0.0002246,2]
[423531416,1780197040000,-2494.55939288,0.00022336,2]
[423531413,1780197040000,-1311.37331949,0.00022132,2]
[423531418,1780197040000,-500.0,0.00022411,2]
[423531414,1780197040000,-158.31,0.0002214,2]
[423531415,1780197040000,-500.0,0.0002218,2]
[423531412,1780197040000,-2177.66,0.00022,2]
[423531419,1780197040000,-2000.0,0.00022419,2]
[423531506,1780197041000,-500.0,0.00024172,2]
[423531512,1780197041000,-500.0,0.00024536,2]
[423531509,1780197041000,-500.0,0.00024354,2]
[423531508,1780197041000,-1045.5,0.00024324,2]
[423531505,1780197041000,-4995.0,0.00024124,2]
[423531497,1780197041000,-158.07026131,0.00024,2]
[423531514,1780197041000,-220.0,0.00024641,2]
[423531504,1780197041000,-210.659953,0.000241,2]
[423531502,1780197041000,-265.0,0.00024,2]
[423531500,1780197041000,-161.0,0.00024,2]
[423531503,1780197041000,-4995.0,0.00024074,2]
[423531507,1780197041000,-500.0,0.00024236,2]
[423531527,1780197041000,-150.717,0.00024641,2]
[423531511,1780197041000,-2884.75459676,0.00024528,2]
[423531510,1780197041000,-284.99834464,0.00024441,2]
[423531516,1780197041000,-200.0,0.00024641,2]
[423531526,1780197041000,-167.326,0.00024641,2]
[423531501,1780197041000,-669.0,0.00024,2]
[423531515,1780197041000,-150.0,0.00024641,2]
[423531521,1780197041000,-166.754,0.00024641,2]
[423531519,1780197041000,-246.795,0.00024641,2]
[423531517,1780197041000,-207.911,0.00024641,2]
[423531520,1780197041000,-250.0,0.00024641,2]
[423531523,1780197041000,-250.0,0.00024641,2]
[423531522,1780197041000,-296.38,0.00024641,2]
[423531524,1780197041000,-150.0,0.00024641,2]
[423531513,1780197041000,-603.51086519,0.00024636,2]
[423531498,1780197041000,-424.0,0.00024,2]
[423531488,1780197041000,-500.0,0.00023808,2]
[423531494,1780197041000,-497.0,0.00024,2]
[423531525,1780197041000,-150.675,0.00024641,2]
[423531457,1780197041000,-669.0,0.00023,2]
[423531470,1780197041000,-4995.0,0.00023382,2]
[423531472,1780197041000,-1123.99999999,0.00023417,2]
[423531478,1780197041000,-2682.57183977,0.00023432,2]
[423531458,1780197041000,-265.0,0.00023,2]
[423531476,1780197041000,-4995.0,0.00023431,2]
[423531474,1780197041000,-4995.0,0.00023431,2]
[423531460,1780197041000,-609.95298473,0.00023155,2]
[423531462,1780197041000,-4995.0,0.00023331,2]
[423531464,1780197041000,-4995.0,0.00023332,2]
[423531466,1780197041000,-4995.0,0.00023381,2]
[423531499,1780197041000,-189.0,0.00024,2]
[423531480,1780197041000,-500.0,0.00023452,2]
[423531482,1780197041000,-4995.0,0.00023481,2]
[423531486,1780197041000,-150.37708739,0.00023558,2]
[423531485,1780197041000,-10061.13877921,0.00023531,2]
[423531483,1780197041000,-4995.0,0.00023481,2]
[423531489,1780197041000,-256.51424464,0.0002391,2]
[423531490,1780197041000,-2781.82699784,0.0002398,2]
[423531487,1780197041000,-665.43,0.000237,14]
[423531491,1780197041000,-500.0,0.0002399,2]
[423531492,1780197041000,-190.0,0.00024,2]
[423531493,1780197041000,-286.0,0.00024,2]
[423531495,1780197041000,-437.0,0.00024,2]
[423531496,1780197041000,-197.0,0.00024,2]
[423531468,1780197041000,-2036.54,0.00023381,2]
[423531484,1780197041000,-500.0,0.00023531,2]
[423531518,1780197041000,-163.0,0.00024641,2]
[423531534,1780197041000,-1226.0,0.00024641,2]
[423531564,1780197041000,-578.0,0.00025082,2]
[423531556,1780197041000,-165.34377798,0.00025,2]
[423531557,1780197041000,-684.81901892,0.00025,2]
[423531562,1780197041000,-2991.49051684,0.00025076,2]
[423531559,1780197041000,-1047.90129968,0.00025,2]
[423531568,1780197041000,-500.0,0.00025263,2]
[423531567,1780197041000,-150.0,0.0002526,4]
[423531566,1780197041000,-200.0,0.00025159,2]
[423531571,1780197041000,-150.0,0.00025379,4]
[423531578,1780197041000,-150.0,0.00025619,4]
[423531577,1780197041000,-1954.0,0.00025616,2]
[423531575,1780197041000,-150.0,0.00025532,4]
[423531572,1780197041000,-500.0,0.00025445,2]
[423531576,1780197041000,-4073.08,0.00025569,2]
[423531569,1780197041000,-150.0,0.00025281,4]
[423531570,1780197041000,-174.09425739,0.0002532,2]
[423531573,1780197041000,-150.0,0.00025469,4]
[423531574,1780197041000,-150.0,0.00025499,4]
[423531580,1780197041000,-578.0,0.00025637,2]
[423531581,1780197041000,-446.11,0.00025644,2]
[423531582,1780197041000,-10061.13877921,0.00025697,2]
[423531579,1780197041000,-500.0,0.00025627,2]
[423531585,1780197041000,-150.0,0.00025739,4]
[423531587,1780197041000,-150.0,0.00025782,4]
[423531586,1780197041000,-206.95,0.00025761,2]
[423531584,1780197041000,-500.0,0.00025712,2]
[423531529,1780197041000,-928.0,0.00024641,2]
[423531560,1780197041000,-150.0,0.0002502,4]
[423531561,1780197041000,-150.0,0.00025031,4]
[423531583,1780197041000,-2000.0,0.00025703,7]
[423531552,1780197041000,-439.2771525,0.00025,2]
[423531554,1780197041000,-428.0,0.00025,2]
[423531533,1780197041000,-1405.237,0.00024641,2]
[423531530,1780197041000,-1356.0,0.00024641,2]
[423531531,1780197041000,-3550.0,0.00024641,2]
[423531528,1780197041000,-186.0,0.00024641,2]
[423531532,1780197041000,-527.0,0.00024641,2]
[423531535,1780197041000,-3639.0,0.00024641,2]
[423531537,1780197041000,-1000.0,0.00024658,2]
[423531536,1780197041000,-176.75,0.00024658,15]
[423531538,1780197041000,-803.95,0.00024658,2]
[423531540,1780197041000,-150.0,0.00024781,4]
[423531543,1780197041000,-150.0,0.00024781,4]
[423531542,1780197041000,-150.0,0.00024781,4]
[423531539,1780197041000,-500.0,0.00024717,2]
[423531551,1780197041000,-506.20242509,0.00025,2]
[423531545,1780197041000,-500.0,0.00024899,2]
[423531555,1780197041000,-194.96743013,0.00025,2]
[423531553,1780197041000,-209.62575589,0.00025,2]
[423531563,1780197041000,-500.0,0.00025081,2]
[423531544,1780197041000,-2177.66,0.00024877,7]
[423531565,1780197041000,-150.0,0.0002514,4]
[423531549,1780197041000,-205.32530215,0.00025,2]
[423531547,1780197041000,-2000.0,0.0002491,2]
[423531546,1780197041000,-150.0,0.00024901,4]
[423531548,1780197041000,-500.0,0.00024964,2]
[423531558,1780197041000,-265.57790151,0.00025,2]
[423531541,1780197041000,-150.0,0.00024781,4]
[423531550,1780197041000,-287.96941953,0.00025,2]
[423531627,1780197042000,-157.0,0.00026512,2]
[423531619,1780197042000,-207.76482817,0.00026362,2]
[423531617,1780197042000,-857.73993207,0.00026362,2]
[423531622,1780197042000,-150.0,0.00026457,4]
[423531615,1780197042000,-500.0,0.00026354,2]
[423531620,1780197042000,-1428.38747117,0.00026362,2]